fUSD/lending_fUSD_20250112
["ID","MTS","AMOUNT","RATE_DAILY","PERIOD"]
[348648968,1736698257630,-1069.66,0.00010894,2]
[348648969,1736698257639,-724.64,0.00010894,2]
[348648970,1736698257648,-832.82,0.00010894,2]
[348648971,1736698257657,-2968.94,0.00010894,2]
[348648972,1736698257667,-500.0,0.00010894,2]
[348648973,1736698257676,-549.09,0.00010894,2]
[348648974,1736698257685,-677.23,0.00010894,2]
[348648975,1736698257695,-697.25,0.00010894,2]
[348648976,1736698257704,-500.0,0.00010894,2]
[348648977,1736698257714,-604.83,0.00010894,2]
[348648978,1736698257723,-1761.21,0.00010894,2]
[348648979,1736698257732,-551.92,0.00010894,2]
[348648980,1736698257741,-701.02,0.00010894,2]
[348648981,1736698257751,-500.0,0.00010894,2]
[348648982,1736698257760,-534.93,0.00010894,2]
[348648983,1736698257769,-1390.39,0.00010894,2]
[348648984,1736698257779,-619.4,0.00010894,2]
[348648985,1736698257788,-1118.37,0.00010894,2]
[348648986,1736698257798,-667.23,0.00010894,2]
[348648987,1736698257810,-539.66,0.00010894,2]
[348648988,1736698257820,-1432.73,0.00010894,2]
[348648989,1736698257829,-500.0,0.00010894,2]
[348648990,1736698257838,-629.17,0.00010894,2]
[348648991,1736698257849,-899.38,0.00010894,2]
[348648992,1736698257858,-624.82,0.00010894,2]
[348648993,1736698257868,-527.03,0.00010894,2]
[348648994,1736698257877,-500.0,0.00010895,2]
[348648995,1736698257887,-500.0,0.00010895,2]
[348648996,1736698257895,-500.0,0.00010895,2]
[348648997,1736698257905,-1085.53,0.00010895,2]
[348648998,1736698257915,-500.0,0.00010895,2]
[348648999,1736698257924,-2625.53,0.00010895,2]
[348649000,1736698257934,-500.0,0.00010895,2]
[348649001,1736698257943,-500.0,0.00010895,2]
[348649002,1736698257953,-2931.62,0.00010895,2]
[348649003,1736698257962,-500.0,0.00010895,2]
[348649004,1736698257971,-500.0,0.00010895,2]
[348649005,1736698257980,-500.0,0.00010895,2]
[348649006,1736698257990,-285.29929475,0.00010895,2]
[348649007,1736698257999,-500.0,0.00010895,2]
[348649008,1736698258008,-500.0,0.00010895,2]
[348649009,1736698258019,-500.0,0.00010895,2]
[348649010,1736698258028,-500.0,0.00010895,2]
[348649011,1736698258037,-500.0,0.00010895,2]
[348649012,1736698258046,-500.0,0.00010895,2]
[348649013,1736698258055,-500.0,0.00010895,2]
[348649014,1736698258065,-500.0,0.00010895,2]
[348649015,1736698258074,-2949.15,0.00010895,2]
[348649016,1736698258083,-2826.27,0.00010895,2]
[348649017,1736698258092,-500.0,0.00010895,2]
[348649018,1736698258102,-500.0,0.00010895,2]
[348649019,1736698258111,-500.0,0.00010895,2]
[348649020,1736698258121,-500.0,0.00010895,2]
[348649021,1736698258130,-500.0,0.00010895,2]
[348649022,1736698258139,-578.26,0.00010895,2]
[348649023,1736698258148,-500.0,0.00010895,2]
[348649024,1736698258158,-500.0,0.00010895,2]
[348649025,1736698258167,-589.94,0.00010895,2]
[348649026,1736698258176,-500.0,0.00010895,2]
[348649027,1736698258185,-639.94,0.00010895,2]
[348649028,1736698258195,-500.0,0.00010895,2]
[348649029,1736698258204,-507.80954311,0.00010895,2]
[348649030,1736698258214,-500.0,0.00010895,2]
[348649031,1736698258223,-527.2,0.00010895,2]
[348649032,1736698258232,-500.0,0.00010895,2]
[348649033,1736698258241,-500.0,0.00010895,2]
[348649034,1736698258251,-500.0,0.00010895,2]
[348649035,1736698258261,-500.0,0.00010895,2]
[348649036,1736698258270,-526.05,0.00010895,2]
[348649037,1736698258280,-500.0,0.00010895,2]
[348649038,1736698258289,-500.0,0.00010895,2]
[348649039,1736698258299,-536.07,0.00010895,2]
[348649040,1736698258310,-500.0,0.00010895,2]
[348649041,1736698258320,-500.0,0.00010895,2]
[348649042,1736698258330,-500.0,0.00010895,2]
[348649043,1736698258344,-550.9592916,0.00010895,2]
[348649044,1736698258353,-500.0,0.00010895,2]
[348649045,1736698258363,-500.0,0.00010895,2]
[348649046,1736698258376,-500.0,0.00010895,2]
[348649047,1736698258390,-500.0,0.00010895,2]
[348649048,1736698258403,-500.0,0.00010895,2]
[348649049,1736698258415,-1225.39,0.00010895,2]
[348649050,1736698258426,-500.0,0.00010895,2]
[348649051,1736698258438,-565.92,0.00010895,2]
[348649052,1736698258450,-949.43,0.00010895,2]
[348649053,1736698258462,-680.43,0.00010895,2]
[348649054,1736698258477,-500.0,0.00010895,2]
[348649055,1736698258490,-500.0,0.00010895,2]
[348649056,1736698258502,-500.0,0.00010895,2]
[348649057,1736698258515,-500.0,0.00010895,2]
[348649058,1736698258527,-500.0,0.00010895,2]
[348649059,1736698258540,-500.0,0.00010895,2]
[348649060,1736698258551,-836.62,0.00010895,2]
[348649061,1736698258563,-1224.04,0.00010895,2]
[348649062,1736698258573,-500.0,0.00010895,2]
[348649063,1736698258583,-670.04,0.00010895,2]
[348649064,1736698258594,-500.0,0.00010895,2]
[348649065,1736698258606,-966.69,0.00010895,2]
[348649066,1736698258617,-769.16,0.00010895,2]
[348649067,1736698258628,-1278.83,0.00010895,2]
[348649068,1736698258640,-500.0,0.00010895,2]
[348649069,1736698258651,-500.0,0.00010895,2]
[348649070,1736698258663,-500.0,0.00010895,2]
[348649071,1736698258675,-1772.47,0.00010895,2]
[348649072,1736698258686,-500.0,0.00010895,2]
[348649073,1736698258699,-500.0,0.00010895,2]
[348649074,1736698258710,-622.86,0.00010895,2]
[348649075,1736698258721,-500.0,0.00010895,2]
[348649076,1736698258733,-1258.1,0.00010895,2]
[348649077,1736698258745,-500.0,0.00010895,2]
[348649078,1736698258757,-500.0,0.00010895,2]
[348649079,1736698258768,-500.0,0.00010895,2]
[348649080,1736698258779,-677.55,0.00010895,2]
[348649081,1736698258791,-500.0,0.00010895,2]
[348649082,1736698258801,-3775.72,0.00010895,2]
[348649083,1736698258813,-587.48,0.00010895,2]
[348649084,1736698258825,-779.09,0.00010895,2]
[348649085,1736698258837,-2872.41,0.00010895,2]
[348649086,1736698258848,-785.75,0.00010895,2]
[348649087,1736698258859,-1364.9,0.00010895,2]
[348649088,1736698258870,-540.47,0.00010895,2]
[348649089,1736698258881,-508.1,0.00010895,2]
[348649090,1736698258892,-751.84,0.00010895,2]
[348649091,1736698258901,-500.0,0.00010895,2]
[348649092,1736698258912,-500.0,0.00010895,2]
[348649093,1736698258923,-1078.66,0.00010895,2]
[348649094,1736698258935,-200.82351209,0.00010944,2]
[348649095,1736698258948,-1143.03,0.00010957,2]
[348649096,1736698258959,-1189.15,0.00010957,2]
[348649097,1736698258968,-1400.67,0.00010957,2]
[348649098,1736698258979,-1064.24,0.00010957,2]
[348649099,1736698258988,-2470.06,0.00010957,2]
[348649100,1736698258999,-999.0,0.00010958,2]
[348649101,1736698259011,-7500.0,0.00010958,2]
[348649102,1736698259022,-7500.0,0.00010958,2]
[348649103,1736698259035,-7500.0,0.00010958,2]
[348649104,1736698259046,-7500.0,0.00010958,2]
[348649105,1736698259056,-7500.0,0.00010958,2]
[348649106,1736698259066,-150.0,0.00010959,2]
[348649107,1736698259076,-803.79,0.00010959,2]
[348649108,1736698259086,-573.03,0.00010959,2]
[348649109,1736698259098,-803.75,0.00010959,2]
[348649110,1736698259109,-546.86,0.00010959,2]
[348649111,1736698259119,-818.41,0.00010959,2]
[348649112,1736698259130,-1323.72,0.00010959,2]
[348649113,1736698259140,-1217.4,0.00010959,2]
[348649114,1736698259151,-2076.84,0.00010959,2]
[348649115,1736698259162,-4908.8,0.00010959,2]
[348649116,1736698259172,-883.49,0.00010959,2]
[348649117,1736698259183,-610.05,0.00010959,2]
[348649118,1736698259194,-650.83,0.00010959,2]
[348649119,1736698259205,-1685.23,0.00010959,2]
[348649120,1736698259215,-500.0,0.00010959,2]
[348649121,1736698259226,-1985.75,0.00010959,2]
[348649122,1736698259237,-718.65,0.00010959,2]
[348649123,1736698259248,-1042.88,0.00010959,2]
[348649124,1736698259259,-1379.44,0.00010959,2]
[348649125,1736698259269,-500.0,0.00010959,2]
[348649126,1736698259280,-1000.0,0.00010959,2]
[348649127,1736698259290,-822.3,0.00010959,2]
[348649128,1736698259301,-500.0,0.00010959,2]
[348649129,1736698259312,-968.77961326,0.00010964,2]
[348649130,1736698259322,-550.0,0.00011,2]
[348649131,1736698259335,-200.0,0.00011,2]
[348649132,1736698259346,-8295.56767934,0.0001105,2]
[348649133,1736698259357,-189.17333909,0.0001105,2]
[348649134,1736698259368,-832.24,0.00011059,2]
[348649135,1736698259379,-558.76,0.00011059,2]
[348649136,1736698259392,-828.37,0.00011059,2]
[348649137,1736698259402,-191.45748554,0.00011059,2]
[348649138,1736698259413,-920.15,0.00011059,2]
[348649139,1736698259424,-500.0,0.00011059,2]
[348649140,1736698259435,-559.93,0.00011059,2]
[348649141,1736698259445,-679.82,0.00011059,2]
[348649142,1736698259456,-500.0,0.00011059,2]
[348649143,1736698259467,-500.0,0.00011059,2]
[348649144,1736698259477,-200.82351209,0.00011067,2]
[348649145,1736698259487,-894.03,0.00011095,2]
[348649146,1736698259498,-2129.69,0.00011095,2]
[348649147,1736698259509,-945.51,0.00011095,2]
[348649148,1736698259519,-751.46,0.00011095,2]
[348649149,1736698259530,-761.1,0.00011095,2]
[348649150,1736698259541,-500.0,0.00011095,2]
[348649151,1736698259551,-500.0,0.00011095,2]
[348649152,1736698259562,-16222.94448756,0.00011099,2]
[348649153,1736698259572,-16222.94448749,0.00011099,2]
[348649154,1736698259583,-16222.94448749,0.00011099,2]
[348649155,1736698259593,-16222.94448749,0.00011099,2]
[348649156,1736698259604,-16222.94448749,0.00011099,2]
[348649157,1736698259615,-16222.94448749,0.00011099,2]
[348649158,1736698259625,-16222.94448749,0.00011099,2]
[348649159,1736698259636,-16222.94448749,0.00011099,2]
[348649160,1736698259647,-16222.94448749,0.00011099,2]
[348649161,1736698259658,-16222.94448749,0.00011099,2]
[348649162,1736698259669,-179.01749999,0.00011099,2]
[348649163,1736698259680,-179.01749997,0.00011099,2]
[348649164,1736698259691,-179.01749997,0.00011099,2]
[348649165,1736698259702,-179.01749997,0.00011099,2]
[348649166,1736698259712,-1000.0,0.00011158,2]
[348649167,1736698259724,-1590.69,0.00011167,2]
[348649168,1736698259734,-2660.24,0.00011167,2]
[348649169,1736698259745,-1655.31,0.00011167,2]
[348649170,1736698259755,-1031.3,0.00011167,2]
[348649171,1736698259766,-931.8,0.00011167,2]
[348649172,1736698259777,-2429.75,0.00011167,2]
[348649173,1736698259787,-773.96,0.00011167,2]
[348649174,1736698259798,-500.0,0.00011167,2]
[348649175,1736698259809,-960.5,0.00011167,2]
[348649176,1736698259821,-1143.84,0.00011167,2]
[348649177,1736698259832,-500.0,0.00011167,2]
[348649178,1736698259843,-500.0,0.00011167,2]
[348649179,1736698259855,-1522.49,0.00011167,2]
[348649180,1736698259865,-965.77,0.00011167,2]
[348649181,1736698259877,-500.0,0.00011167,2]
[348649182,1736698259887,-839.28,0.00011167,2]
[348649183,1736698259899,-711.53,0.00011167,2]
[348649184,1736698259910,-698.56,0.00011167,2]
[348649185,1736698259922,-500.0,0.00011168,2]
[348649186,1736698259933,-845.28,0.00011168,2]
[348649187,1736698259944,-500.0,0.00011168,2]
[348649188,1736698259955,-660.73,0.00011168,2]
[348649189,1736698259966,-500.0,0.00011168,2]
[348649190,1736698259978,-500.0,0.00011168,2]
[348649191,1736698259988,-702.4,0.00011168,2]
[348649192,1736698260004,-500.0,0.00011168,2]
[348649193,1736698260016,-500.0,0.00011168,2]
[348649194,1736698260029,-871.11,0.00011168,2]
[348649195,1736698260040,-500.0,0.00011168,2]
[348649196,1736698260051,-548.82,0.00011168,2]
[348649197,1736698260062,-722.29,0.00011168,2]
[348649198,1736698260073,-665.64,0.00011168,2]
[348649199,1736698260084,-500.0,0.00011168,2]
[348649200,1736698260095,-500.0,0.00011168,2]
[348649201,1736698260107,-500.0,0.00011168,2]
[348649202,1736698260118,-500.0,0.00011168,2]
[348649203,1736698260128,-500.0,0.00011168,2]
[348649204,1736698260139,-500.0,0.00011168,2]
[348649205,1736698260150,-500.0,0.00011168,2]
[348649206,1736698260161,-500.0,0.00011168,2]
[348649207,1736698260172,-561.61,0.00011168,2]
[348649208,1736698260182,-487.55,0.00011168,2]
[348649209,1736698260193,-500.0,0.00011168,2]
[348649210,1736698260203,-500.0,0.00011168,2]
[348649211,1736698260214,-702.99,0.00011168,2]
[348649212,1736698260225,-668.97,0.00011168,2]
[348649213,1736698260236,-651.02,0.00011168,2]
[348649214,1736698260247,-1343.35,0.00011168,2]
[348649215,1736698260258,-500.0,0.00011168,2]
[348649216,1736698260269,-500.0,0.00011168,2]
[348649217,1736698260279,-500.0,0.00011168,2]
[348649218,1736698260290,-500.0,0.00011168,2]
[348649219,1736698260300,-500.0,0.00011168,2]
[348649220,1736698260311,-500.0,0.00011168,2]
[348649221,1736698260322,-824.32,0.00011168,2]
[348649222,1736698260336,-604.55,0.00011168,2]
[348649223,1736698260347,-500.0,0.00011168,2]
[348649224,1736698260358,-500.0,0.00011168,2]
[348649225,1736698260368,-500.0,0.00011168,2]
[348649226,1736698260379,-572.61,0.00011168,2]
[348649227,1736698260389,-500.0,0.00011168,2]
[348649228,1736698260401,-500.0,0.00011168,2]
[348649229,1736698260411,-737.79,0.00011168,2]
[348649230,1736698260422,-2030.34,0.00011168,2]
[348649231,1736698260432,-778.33,0.00011168,2]
[348649232,1736698260443,-674.75,0.00011168,2]
[348649233,1736698260453,-627.29,0.00011168,2]
[348649234,1736698260463,-2555.28,0.00011168,2]
[348649235,1736698260474,-500.0,0.00011168,2]
[348649236,1736698260484,-500.0,0.00011168,2]
[348649237,1736698260496,-769.52,0.00011168,2]
[348649238,1736698260506,-1099.8,0.00011168,2]
[348649239,1736698260517,-500.0,0.00011168,2]
[348649240,1736698260527,-822.56,0.00011168,2]
[348649241,1736698260538,-661.75,0.00011168,2]
[348649242,1736698260548,-568.57,0.00011168,2]
[348649243,1736698260558,-500.0,0.00011168,2]
[348649244,1736698260569,-500.0,0.00011168,2]
[348649245,1736698260579,-739.69,0.00011168,2]
[348649246,1736698260589,-500.0,0.00011168,2]
[348649247,1736698260601,-1321.1,0.00011168,2]
[348649248,1736698260611,-712.08,0.00011168,2]
[348649249,1736698260621,-500.0,0.00011168,2]
[348649250,1736698260631,-500.0,0.00011168,2]
[348649251,1736698260641,-520.917218,0.00011168,2]
[348649252,1736698260651,-1250.26,0.00011168,2]
[348649253,1736698260662,-720.34,0.00011168,2]
[348649254,1736698260673,-500.0,0.00011168,2]
[348649255,1736698260683,-500.0,0.00011168,2]
[348649256,1736698260694,-586.56,0.00011168,2]
[348649257,1736698260704,-1947.94,0.00011168,2]
[348649258,1736698260715,-500.0,0.00011168,2]
[348649259,1736698260725,-500.0,0.00011168,2]
[348649260,1736698260735,-874.09,0.00011168,2]
[348649261,1736698260746,-477.985251,0.00011168,2]
[348649262,1736698260757,-1912.02,0.00011168,2]
[348649263,1736698260767,-500.0,0.00011168,2]
[348649264,1736698260778,-750.64,0.00011168,2]
[348649265,1736698260788,-6413.91,0.00011168,2]
[348649266,1736698260799,-500.0,0.00011168,2]
[348649267,1736698260809,-574.46,0.00011168,2]
[348649268,1736698260820,-500.0,0.00011168,2]
[348649269,1736698260830,-500.0,0.00011168,2]
[348649270,1736698260841,-663.35,0.00011168,2]
[348649271,1736698260852,-707.41,0.00011168,2]
[348649272,1736698260863,-618.3,0.00011168,2]
[348649273,1736698260874,-580.09,0.00011168,2]
[348649274,1736698260884,-500.0,0.00011168,2]
[348649275,1736698260895,-3816.01,0.00011168,2]
[348649276,1736698260906,-763.36,0.00011168,2]
[348649277,1736698260916,-994.13,0.00011168,2]
[348649278,1736698260927,-817.51,0.00011168,2]
[348649279,1736698260937,-500.0,0.00011168,2]
[348649280,1736698260948,-553.72,0.00011168,2]
[348649281,1736698260959,-1800.29,0.00011168,2]
[348649282,1736698260970,-500.0,0.00011168,2]
[348649283,1736698260980,-3410.99,0.00011168,2]
[348649284,1736698260991,-785.84,0.00011168,2]
[348649285,1736698261001,-500.0,0.00011168,2]
[348649286,1736698261012,-811.26,0.00011168,2]
[348649287,1736698261022,-544.71,0.00011168,2]
[348649288,1736698261033,-702.98,0.00011168,2]
[348649289,1736698261043,-500.0,0.00011168,2]
[348649290,1736698261054,-2588.92,0.00011168,2]
[348649291,1736698261065,-2758.27,0.00011168,2]
[348649292,1736698261075,-500.0,0.00011168,2]
[348649293,1736698261086,-500.0,0.00011168,2]
[348649294,1736698261098,-1069.66,0.00011168,2]
[348649295,1736698261109,-724.64,0.00011168,2]
[348649296,1736698261119,-832.82,0.00011168,2]
[348649297,1736698261129,-2968.94,0.00011168,2]
[348649298,1736698261140,-500.0,0.00011168,2]
[348649299,1736698261151,-549.09,0.00011168,2]
[348649300,1736698261162,-677.23,0.00011168,2]
[348649301,1736698261173,-697.25,0.00011168,2]
[348649302,1736698261183,-500.0,0.00011168,2]
[348649303,1736698261194,-604.83,0.00011168,2]
[348649304,1736698261204,-1761.21,0.00011168,2]
[348649305,1736698261215,-551.92,0.00011168,2]
[348649306,1736698261224,-701.02,0.00011168,2]
[348649307,1736698261235,-500.0,0.00011168,2]
[348649308,1736698261246,-534.93,0.00011168,2]
[348649309,1736698261256,-1390.39,0.00011168,2]
[348649310,1736698261266,-619.4,0.00011168,2]
[348649311,1736698261276,-1118.37,0.00011168,2]
[348649312,1736698261287,-667.23,0.00011168,2]
[348649313,1736698261297,-539.66,0.00011168,2]
[348649314,1736698261308,-1432.73,0.00011168,2]
[348649315,1736698261318,-500.0,0.00011168,2]
[348649316,1736698261329,-629.17,0.00011168,2]
[348649317,1736698261341,-899.38,0.00011168,2]
[348649318,1736698261352,-624.82,0.00011168,2]
[348649319,1736698261363,-527.03,0.00011168,2]
[348649320,1736698261373,-360.06,0.00011168,2]
[348649321,1736698261382,-500.0,0.00011169,2]
[348649322,1736698261393,-500.0,0.00011169,2]
[348649323,1736698261404,-500.0,0.00011169,2]
[348649324,1736698261414,-1085.53,0.00011169,2]
[348649325,1736698261424,-500.0,0.00011169,2]
[348649326,1736698261434,-2625.53,0.00011169,2]
[348649327,1736698261444,-500.0,0.00011169,2]
[348649328,1736698261453,-500.0,0.00011169,2]
[348649329,1736698261464,-2931.62,0.00011169,2]
[348649330,1736698261474,-500.0,0.00011169,2]
[348649331,1736698261484,-500.0,0.00011169,2]
[348649332,1736698261495,-500.0,0.00011169,2]
[348649333,1736698261505,-500.0,0.00011169,2]
[348649334,1736698261516,-500.0,0.00011169,2]
[348649335,1736698261982,-500.0,0.00011169,2]
[348649336,1736698261999,-500.0,0.00011169,2]
[348649337,1736698262008,-500.0,0.00011169,2]
[348649338,1736698262018,-500.0,0.00011169,2]
[348649339,1736698262027,-500.0,0.00011169,2]
[348649340,1736698262036,-500.0,0.00011169,2]
[348649341,1736698262046,-2949.15,0.00011169,2]
[348649342,1736698262055,-2826.27,0.00011169,2]
[348649343,1736698262064,-500.0,0.00011169,2]
[348649344,1736698262074,-500.0,0.00011169,2]
[348649345,1736698262083,-500.0,0.00011169,2]
[348649346,1736698262092,-500.0,0.00011169,2]
[348649347,1736698262102,-500.0,0.00011169,2]
[348649348,1736698262111,-578.26,0.00011169,2]
[348649349,1736698262120,-500.0,0.00011169,2]
[348649350,1736698262130,-500.0,0.00011169,2]
[348649351,1736698262139,-500.0,0.00011169,2]
[348649352,1736698262149,-639.94,0.00011169,2]
[348649353,1736698262159,-500.0,0.00011169,2]
[348649354,1736698262169,-500.0,0.00011169,2]
[348649355,1736698262178,-527.2,0.00011169,2]
[348649356,1736698262187,-500.0,0.00011169,2]
[348649357,1736698262196,-500.0,0.00011169,2]
[348649358,1736698262205,-239.30971704,0.00011169,2]
[348649359,1736698262215,-500.0,0.00011169,2]
[348649360,1736698262224,-526.05,0.00011169,2]
[348649361,1736698262233,-500.0,0.00011169,2]
[348649362,1736698262242,-500.0,0.00011169,2]
[348649363,1736698262251,-536.07,0.00011169,2]
[348649364,1736698262261,-500.0,0.00011169,2]
[348649365,1736698262270,-500.0,0.00011169,2]
[348649366,1736698262279,-500.0,0.00011169,2]
[348649367,1736698262288,-500.0,0.00011169,2]
[348649368,1736698262298,-500.0,0.00011169,2]
[348649369,1736698262307,-500.0,0.00011169,2]
[348649370,1736698262317,-500.0,0.00011169,2]
[348649371,1736698262327,-1225.39,0.00011169,2]
[348649372,1736698262340,-500.0,0.00011169,2]
[348649373,1736698262350,-565.92,0.00011169,2]
[348649374,1736698262359,-949.43,0.00011169,2]
[348649375,1736698262368,-680.43,0.00011169,2]
[348649376,1736698262378,-500.0,0.00011169,2]
[348649377,1736698262388,-500.0,0.00011169,2]
[348649378,1736698262397,-500.0,0.00011169,2]
[348649379,1736698262407,-500.0,0.00011169,2]
[348649380,1736698262419,-500.0,0.00011169,2]
[348649381,1736698262430,-500.0,0.00011169,2]
[348649382,1736698262442,-836.62,0.00011169,2]
[348649383,1736698262451,-1224.04,0.00011169,2]
[348649384,1736698262461,-670.04,0.00011169,2]
[348649385,1736698262471,-500.0,0.00011169,2]
[348649386,1736698262480,-966.69,0.00011169,2]
[348649387,1736698262489,-769.16,0.00011169,2]
[348649388,1736698262499,-1278.83,0.00011169,2]
[348649389,1736698262509,-500.0,0.00011169,2]
[348649390,1736698262519,-500.0,0.00011169,2]
[348649391,1736698262530,-500.0,0.00011169,2]
[348649392,1736698262540,-1772.47,0.00011169,2]
[348649393,1736698262550,-500.0,0.00011169,2]
[348649394,1736698262562,-500.0,0.00011169,2]
[348649395,1736698262572,-622.86,0.00011169,2]
[348649396,1736698262583,-500.0,0.00011169,2]
[348649397,1736698262594,-1258.1,0.00011169,2]
[348649398,1736698262604,-500.0,0.00011169,2]
[348649399,1736698262614,-500.0,0.00011169,2]
[348649400,1736698262625,-500.0,0.00011169,2]
[348649401,1736698262636,-677.55,0.00011169,2]
[348649402,1736698262646,-500.0,0.00011169,2]
[348649403,1736698262656,-3775.72,0.00011169,2]
[348649404,1736698262665,-587.48,0.00011169,2]
[348649405,1736698262674,-779.09,0.00011169,2]
[348649406,1736698262684,-2872.41,0.00011169,2]
[348649407,1736698262693,-785.75,0.00011169,2]
[348649408,1736698262702,-1364.9,0.00011169,2]
[348649409,1736698262711,-540.47,0.00011169,2]
[348649410,1736698262721,-508.1,0.00011169,2]
[348649411,1736698262731,-751.84,0.00011169,2]
[348649412,1736698262740,-500.0,0.00011169,2]
[348649413,1736698262750,-500.0,0.00011169,2]
[348649414,1736698262759,-1078.66,0.00011169,2]
[348649415,1736698262768,-501.77,0.0001117,2]
[348649416,1736698262778,-200.82351209,0.00011189,2]
[348649417,1736698262788,-1143.03,0.00011231,2]
[348649418,1736698262799,-1189.15,0.00011231,2]
[348649419,1736698262807,-1400.67,0.00011231,2]
[348649420,1736698262818,-1064.24,0.00011231,2]
[348649421,1736698262827,-2470.06,0.00011231,2]
[348649422,1736698262836,-803.79,0.00011233,2]
[348649423,1736698262847,-573.03,0.00011233,2]
[348649424,1736698262856,-803.75,0.00011233,2]
[348649425,1736698262865,-546.86,0.00011233,2]
[348649426,1736698262875,-818.41,0.00011233,2]
[348649427,1736698262884,-1217.4,0.00011233,2]
[348649428,1736698262894,-2076.84,0.00011233,2]
[348649429,1736698262903,-4908.8,0.00011233,2]
[348649430,1736698262913,-883.49,0.00011233,2]
[348649431,1736698262922,-610.05,0.00011233,2]
[348649432,1736698262932,-650.83,0.00011233,2]
[348649433,1736698262941,-1685.23,0.00011233,2]
[348649434,1736698262950,-500.0,0.00011233,2]
[348649435,1736698262959,-1985.75,0.00011233,2]
[348649436,1736698262968,-718.65,0.00011233,2]
[348649437,1736698262978,-1042.88,0.00011233,2]
[348649438,1736698262988,-1379.44,0.00011233,2]
[348649439,1736698262998,-500.0,0.00011233,2]
[348649440,1736698263008,-1000.0,0.00011233,2]
[348649441,1736698263018,-822.3,0.00011233,2]
[348649442,1736698263028,-500.0,0.00011233,2]
[348649443,1736698263039,-200.82351209,0.00011311,2]
[348649444,1736698263049,-832.24,0.00011333,2]
[348649445,1736698263058,-558.76,0.00011333,2]
[348649446,1736698263068,-828.37,0.00011333,2]
[348649447,1736698263077,-920.15,0.00011333,2]
[348649448,1736698263087,-500.0,0.00011333,2]
[348649449,1736698263098,-559.93,0.00011333,2]
[348649450,1736698263108,-679.82,0.00011333,2]
[348649451,1736698263118,-500.0,0.00011333,2]
[348649452,1736698263128,-500.0,0.00011333,2]
[348649453,1736698263138,-894.03,0.00011369,2]
[348649454,1736698263148,-2129.69,0.00011369,2]
[348649455,1736698263158,-945.51,0.00011369,2]
[348649456,1736698263168,-751.46,0.00011369,2]
[348649457,1736698263177,-761.1,0.00011369,2]
[348649458,1736698263187,-500.0,0.00011369,2]
[348649459,1736698263197,-500.0,0.00011369,2]
[348649460,1736698263207,-7500.0,0.00011379,2]
[348649461,1736698263216,-200.82351209,0.00011433,2]
[348649462,1736698263226,-1590.69,0.00011441,2]
[348649463,1736698263236,-2660.24,0.00011441,2]
[348649464,1736698263246,-1655.31,0.00011441,2]
[348649465,1736698263256,-1031.3,0.00011441,2]
[348649466,1736698263266,-931.8,0.00011441,2]
[348649467,1736698263276,-2429.75,0.00011441,2]